bitfinex/quotes_SOLUSD_20220113
["timestamp","ask_amount","ask_price","bid_price","bid_amount"]
[1642038224908,0.26,149.51,149.44,99.16721604]
[1642038225108,6.26,149.51,149.44,99.16721604]
[1642038225308,6.51,149.51,149.44,97.2605]
[1642038227009,6.51,149.51,149.44,1.495]
[1642038227410,2.676,149.5,149.44,1.495]
[1642038227610,6.0,149.49,149.44,1.495]
[1642038227810,6.26,149.49,149.44,1.495]
[1642038228010,6.51,149.49,149.44,1.495]
[1642038228210,6.25,149.49,149.44,1.495]
[1642038228613,6.0,149.52,149.44,1.495]
[1642038228813,6.0,149.52,149.45,0.26]
[1642038229915,6.25,149.52,149.45,0.26]
[1642038230116,6.25,149.52,149.46,2.674]
[1642038230318,6.25,149.52,149.45,2.934]
[1642038231118,6.25,149.52,149.45,2.674]
[1642038231522,0.26,149.51,149.45,2.674]
[1642038231919,6.25,149.52,149.45,2.674]
[1642038233819,6.25,149.52,149.44,24.827]
[1642038237860,6.0,149.52,149.44,24.827]
[1642038238061,6.0,149.52,149.45,0.26]
[1642038238265,6.0,149.52,149.46,2.674]
[1642038238467,6.0,149.52,149.47,0.26]
[1642038238662,6.0,149.54,149.48,2.674]
[1642038238861,6.0,149.51,149.48,2.674]
[1642038239062,6.0,149.54,149.47,0.26]
[1642038239264,6.0,149.54,149.46,2.934]
[1642038239466,6.0,149.55,149.46,2.934]
[1642038239664,15.5,149.55,149.46,25.586]
[1642038239870,9.5,149.55,149.46,25.586]
[1642038240066,6.0,149.54,149.46,25.586]
[1642038241971,0.1883,149.55,149.47,67.0]
[1642038242268,6.0,149.53,149.48,2.674]
[1642038242470,0.1883,149.55,149.48,2.934]
[1642038244275,2.8623,149.55,149.48,2.934]
[1642038244674,0.1883,149.55,149.48,2.934]
[1642038244874,0.1883,149.55,149.48,25.516]
[1642038248104,0.1883,149.55,149.48,22.582]
[1642038252709,0.1883,149.55,149.49,0.26]
[1642038253511,0.1883,149.55,149.48,22.582]
[1642038253713,2.674,149.54,149.46,2.674]
[1642038253914,0.26,149.53,149.45,29.21441604]
[1642038254114,0.26,149.53,149.45,26.54041604]
[1642038254715,2.674,149.54,149.45,26.54041604]
[1642038254919,0.1883,149.55,149.46,2.674]
[1642038255114,0.1883,149.55,149.47,24.5349]
[1642038255315,0.4483,149.55,149.47,24.5349]
[1642038255516,0.4483,149.55,149.48,0.26]
[1642038257116,0.4483,149.55,149.48,2.934]
[1642038259221,0.4483,149.55,149.48,2.674]
[1642038259420,2.674,149.54,149.48,2.674]
[1642038259618,2.674,149.54,149.46,1.90671604]
[1642038259819,0.26,149.53,149.46,1.90671604]
[1642038260021,0.26,149.53,149.45,4.58071604]
[1642038260417,0.26,149.53,149.46,0.26]
[1642038261720,7.4841522,149.52,149.46,0.26]
[1642038261921,7.4841522,149.52,149.45,0.26]
[1642038262121,7.7341522,149.52,149.45,0.26]
[1642038262821,2.924,149.52,149.45,0.26]
[1642038263222,2.934,149.53,149.45,0.26]
[1642038263425,0.26,149.53,149.45,0.26]
[1642038265722,12.174,149.54,149.45,0.26]
[1642038265924,9.5,149.54,149.46,2.674]
[1642038266325,9.5,149.54,149.47,0.26]
[1642038266524,9.5,149.54,149.48,2.674]
[1642038266923,2.674,149.56,149.48,2.674]
[1642038267124,0.26,149.54,149.48,2.674]
[1642038267323,9.76,149.54,149.48,2.674]
[1642038267725,10.01,149.54,149.48,2.674]
[1642038268124,9.75,149.54,149.48,2.674]
[1642038268325,9.75,149.54,149.49,0.26]
[1642038268925,9.75,149.54,149.47,2.934]
[1642038271133,9.75,149.54,149.47,69.274]
[1642038275032,9.75,149.54,149.47,2.674]
[1642038275431,0.26,149.53,149.45,1.90671604]
[1642038275632,12.434,149.53,149.45,1.90671604]
[1642038275832,18.434,149.53,149.45,1.90671604]
[1642038276034,20.48877668,149.53,149.45,1.90671604]
[1642038276532,20.48877668,149.53,149.44,1.495]
[1642038276932,20.48877668,149.53,149.44,25.7002]
[1642038277635,15.76,149.53,149.44,25.7002]
[1642038277836,9.76,149.53,149.45,2.674]
[1642038279035,10.01,149.53,149.45,2.674]
[1642038281840,9.75,149.53,149.45,26.40999978]
[1642038282041,2.674,149.55,149.46,66.6]
[1642038282243,14.00565618,149.56,149.47,27.4744]
[1642038282446,14.00565618,149.56,149.48,0.26]
[1642038282646,6.0,149.55,149.48,0.26]
[1642038283048,4.50565618,149.56,149.48,0.26]
[1642038283248,1.83165618,149.56,149.48,6.26]
[1642038283447,1.83165618,149.57,149.49,24.5337]
[1642038283647,1.83165618,149.57,149.5,66.34]
[1642038283847,1.83165618,149.57,149.5,66.6]
[1642038284249,1.83165618,149.57,149.51,29.97586313]
[1642038284450,25.97466546,149.6,149.52,0.26]
[1642038284649,26.22466546,149.6,149.53,2.674]
[1642038284848,3.42206546,149.6,149.53,2.674]
[1642038285049,3.17206546,149.6,149.53,2.674]
[1642038285250,1.34040928,149.6,149.53,2.674]
[1642038286152,1.59040928,149.6,149.53,2.674]
[1642038286452,0.26,149.59,149.53,2.674]
[1642038288253,6.26,149.59,149.53,2.674]
[1642038288454,6.0,149.59,149.54,0.26]
[1642038288685,6.25,149.59,149.54,0.26]
[1642038289288,0.25,149.59,149.54,0.26]
[1642038289686,1.59040928,149.6,149.54,0.26]
[1642038289885,0.26,149.59,149.53,2.674]
[1642038290086,2.934,149.59,149.53,2.674]
[1642038290287,18.684,149.59,149.53,2.674]
[1642038290488,6.0,149.58,149.53,2.674]
[1642038290692,2.674,149.57,149.53,2.674]
[1642038290889,2.934,149.57,149.53,2.674]
[1642038291089,3.184,149.57,149.53,2.674]
[1642038291289,3.184,149.57,149.47,2.674]
[1642038291489,15.5,149.56,149.47,2.674]
[1642038291790,15.75,149.56,149.47,2.674]
[1642038291991,2.934,149.55,149.46,2.674]
[1642038292190,2.934,149.55,149.45,103.55191604]
[1642038292191,9.5,149.54,149.45,1.90671604]
[1642038292390,2.934,149.53,149.45,1.90671604]
[1642038292590,15.5,149.52,149.45,1.90671604]
[1642038292890,4.73877668,149.51,149.44,1.495]
[1642038293090,6.0,149.5,149.44,1.495]
[1642038293292,2.676,149.49,149.44,1.495]
[1642038293489,6.0,149.48,149.44,1.495]
[1642038293691,6.25,149.48,149.44,1.495]
[1642038294093,0.25,149.48,149.44,1.495]
[1642038294896,9.75,149.51,149.44,27.56917611]
[1642038295295,9.75,149.51,149.45,0.26]
[1642038295495,9.75,149.51,149.44,1.495]
[1642038295696,2.936,149.5,149.44,1.495]
[1642038296096,3.186,149.5,149.44,1.495]
[1642038296697,2.936,149.5,149.45,2.676]
[1642038296896,2.676,149.5,149.46,0.26]
[1642038297097,2.676,149.5,149.47,2.674]
[1642038297295,2.676,149.5,149.48,6.06439993]
[1642038298297,2.926,149.5,149.48,6.06439993]
[1642038302425,2.676,149.5,149.48,6.06439993]
[1642038303631,2.674,149.54,149.48,6.06439993]
[1642038303828,0.25,149.5,149.48,6.06439993]
[1642038304028,0.25,149.5,149.45,2.674]
[1642038304828,8.934,149.54,149.45,2.674]
[1642038304829,9.5,149.53,149.45,2.674]
[1642038305029,8.934,149.52,149.45,2.674]
[1642038305332,9.5,149.51,149.45,2.674]
[1642038305531,8.934,149.5,149.44,1.495]
[1642038305731,18.684,149.5,149.44,1.495]
[1642038306032,20.48877668,149.5,149.44,1.495]
[1642038306234,1.80477668,149.49,149.44,1.495]
[1642038306430,2.936,149.48,149.44,1.495]
[1642038306632,8.936,149.48,149.44,1.495]
[1642038306832,10.99077668,149.48,149.44,1.495]
[1642038307031,8.31477668,149.48,149.44,1.495]
[1642038307231,6.51,149.48,149.44,1.495]
[1642038307635,6.26,149.48,149.44,1.495]
[1642038309132,6.51,149.48,149.44,1.495]
[1642038309335,59.48077668,149.47,149.37,1.90671604]
[1642038309536,118.71,149.43,149.36,1.90671604]
[1642038309734,12.177,149.42,149.36,1.90671604]
[1642038309934,20.24177668,149.42,149.36,1.90671604]
[1642038310234,120.51477668,149.41,149.36,1.90671604]
[1642038310437,12.437,149.4,149.36,1.40671604]
[1642038310636,18.687,149.4,149.36,1.40671604]
[1642038310839,18.687,149.4,149.33,700.0]
[1642038311342,137.397,149.4,149.33,700.0]
[1642038312344,134.47,149.4,149.33,700.0]
[1642038313235,134.21,149.4,149.33,700.0]
[1642038315136,0.26,149.39,149.33,700.0]
[1642038315336,9.5,149.38,149.33,700.0]
[1642038315539,0.26,149.37,149.33,700.0]
[1642038315736,9.5,149.38,149.33,700.0]
[1642038315737,9.5,149.36,149.33,700.0]
[1642038315935,9.5,149.35,149.33,700.0]
[1642038316137,9.75,149.35,149.34,54.06439993]
[1642038318337,9.5,149.35,149.34,54.06439993]
[1642038318940,9.76,149.35,149.34,54.06439993]
[1642038319638,9.75,149.35,149.34,51.03219997]
[1642038319839,9.75,149.35,149.34,54.06439993]
[1642038322038,10.01,149.35,149.34,54.06439993]
[1642038322238,9.75,149.35,149.34,54.06439993]
[1642038323042,9.75,149.35,149.34,6.06439993]
[1642038323441,9.75,149.35,149.34,26.0]
[1642038323642,9.75,149.35,149.34,32.06439993]
[1642038326343,9.5,149.35,149.34,32.06439993]
[1642038327542,9.5,149.35,149.34,62.85377391]
[1642038327744,9.5,149.38,149.34,62.85377391]
[1642038327945,9.5,149.38,149.35,2.677]
[1642038328243,9.5,149.38,149.36,3.03219996]
[1642038329746,9.75,149.38,149.36,3.03219996]
[1642038329944,9.5,149.38,149.36,3.03219996]
[1642038331246,9.75,149.38,149.36,3.03219996]
[1642038332249,0.26,149.37,149.36,3.03219996]
[1642038332446,12.79059896,149.37,149.34,26.0]
[1642038332646,13.04059896,149.37,149.34,26.0]
[1642038333248,12.78059896,149.37,149.34,26.0]
[1642038334450,12.78059896,149.37,149.34,28.678]
[1642038334952,9.75,149.37,149.34,28.678]
[1642038335249,9.5,149.37,149.35,3.03219996]
[1642038336751,9.75,149.37,149.35,3.03219996]
[1642038337050,9.5,149.37,149.35,3.03219996]
[1642038338551,9.75,149.37,149.35,3.03219996]
[1642038339052,9.5,149.37,149.35,3.03219996]
[1642038339455,9.5,149.37,149.36,69.21024395]
[1642038340253,9.5,149.37,149.35,3.03219996]
[1642038340652,9.75,149.37,149.35,3.03219996]
[1642038343455,0.26,149.36,149.35,3.03219996]
[1642038343654,3.03059896,149.36,149.33,700.0]
[1642038343853,9.75,149.37,149.34,3.03219996]
[1642038344054,0.25,149.36,149.34,3.03219996]
[1642038344255,9.75,149.37,149.34,3.03219996]
[1642038345557,3.03059896,149.36,149.33,700.0]
[1642038345757,3.28059896,149.36,149.33,700.0]
[1642038346056,0.25,149.36,149.33,700.0]
[1642038346857,0.25,149.37,149.33,700.0]
[1642038347057,9.5,149.36,149.33,700.0]
[1642038347255,9.75,149.36,149.33,700.0]
[1642038347459,9.75,149.36,149.34,3.03219996]
[1642038347659,3.03059896,149.35,149.33,700.0]
[1642038347960,9.75,149.36,149.33,700.0]
[1642038350057,9.5,149.36,149.33,700.0]
[1642038350858,9.5,149.36,149.34,3.03219996]
[1642038351759,9.75,149.36,149.34,3.03219996]
[1642038352159,12.78059896,149.36,149.34,3.03219996]
[1642038352358,12.78059896,149.36,149.33,700.0]
[1642038352562,0.26,149.35,149.33,700.0]
[1642038352761,9.76,149.35,149.33,700.0]
[1642038352966,10.0485,149.34,149.33,700.0]
[1642038353170,10.2985,149.34,149.33,703.03219996]
[1642038353366,10.5585,149.34,149.33,703.03219996]
[1642038353768,0.25,149.34,149.33,703.03219996]
[1642038358099,3.28059896,149.34,149.33,700.0]
[1642038358901,9.5,149.35,149.33,703.03219996]
[1642038360204,9.75,149.35,149.33,703.03219996]
[1642038361402,9.5,149.35,149.33,703.03219996]
[1642038361605,9.75,149.35,149.33,703.03219996]
[1642038362004,9.5,149.35,149.33,703.03219996]
[1642038362408,10.0448,149.37,149.33,703.03219996]
[1642038362611,9.5,149.36,149.33,703.03219996]
[1642038362810,10.0448,149.37,149.33,703.03219996]
[1642038363011,9.5,149.36,149.33,703.03219996]
[1642038363209,10.0448,149.37,149.33,703.03219996]
[1642038363412,9.75,149.36,149.33,703.03219996]
[1642038363609,10.2948,149.37,149.33,703.03219996]
[1642038363810,9.75,149.36,149.33,703.03219996]
[1642038364011,9.5,149.36,149.33,703.03219996]
[1642038364210,9.75,149.36,149.33,703.03219996]
[1642038364410,3.03059896,149.35,149.33,703.03219996]
[1642038364611,12.53059896,149.35,149.33,703.03219996]
[1642038365011,9.75,149.35,149.33,703.03219996]
[1642038366111,12.78059896,149.35,149.33,703.03219996]
[1642038366513,9.75,149.35,149.33,703.03219996]
[1642038368418,9.75,149.35,149.33,700.0]
[1642038368818,9.75,149.35,149.33,703.03219996]
[1642038370318,3.29059896,149.34,149.33,700.0]
[1642038370517,14.59537564,149.34,149.33,703.03219996]
[1642038370717,11.81477668,149.34,149.33,703.03219996]
[1642038370919,10.01,149.34,149.33,703.03219996]
[1642038371518,9.75,149.34,149.33,703.03219996]
[1642038371919,19.7967,149.34,149.33,703.03219996]
[1642038373424,20.0567,149.34,149.33,703.03219996]
[1642038373620,23.08729896,149.34,149.33,700.0]
[1642038374222,20.0567,149.34,149.33,703.03219996]
[1642038376144,23.08729896,149.34,149.33,700.0]
[1642038376946,20.0567,149.34,149.33,703.03219996]
[1642038378450,20.0567,149.34,149.33,700.0]
[1642038378650,23.08729896,149.34,149.33,700.0]
[1642038380148,20.0567,149.34,149.33,703.03219996]
[1642038381751,20.0567,149.34,149.33,700.0]
[1642038381950,23.08729896,149.34,149.33,700.0]
[1642038382150,20.0567,149.34,149.33,703.03219996]
[1642038382351,20.0567,149.34,149.33,700.0]
[1642038383153,19.8067,149.34,149.33,700.0]
[1642038383557,19.8067,149.34,149.33,703.03219996]
[1642038383957,22.83729896,149.34,149.33,700.0]
[1642038384659,23.08729896,149.34,149.33,700.0]
[1642038385558,22.83729896,149.34,149.33,700.0]
[1642038386560,19.8067,149.34,149.33,703.03219996]
[1642038387561,20.0567,149.34,149.33,703.03219996]
[1642038387762,23.08729896,149.34,149.33,700.0]
[1642038388162,20.0567,149.34,149.33,700.0]
[1642038388666,20.0567,149.34,149.33,703.03219996]
[1642038389262,23.08729896,149.34,149.33,700.0]
[1642038389464,12.53059896,149.34,149.33,700.0]
[1642038389665,9.5,149.34,149.33,700.0]
[1642038389867,9.5,149.34,149.33,703.03219996]
[1642038390062,0.0001,149.34,149.33,703.03219996]
[1642038391862,3.03069896,149.34,149.33,700.0]
[1642038392063,13.07749896,149.34,149.33,700.0]
[1642038392262,13.32749896,149.34,149.33,700.0]
[1642038392466,13.58749896,149.34,149.33,700.0]
[1642038393667,10.5569,149.34,149.33,703.03219996]
[1642038394167,13.58749896,149.34,149.33,700.0]
[1642038394768,10.2969,149.34,149.33,700.0]
[1642038394969,0.2501,149.34,149.33,703.03219996]
[1642038395169,0.0001,149.34,149.33,703.03219996]
[1642038401900,3.03069896,149.34,149.33,700.0]
[1642038402301,3.28069896,149.34,149.33,700.0]
[1642038402601,3.03069896,149.34,149.33,700.0]
[1642038402801,0.0001,149.34,149.33,703.03219996]
[1642038405002,10.0453,149.36,149.33,703.03219996]
[1642038405203,10.2953,149.36,149.33,703.03219996]
[1642038405703,0.25,149.36,149.33,703.03219996]
[1642038406303,9.75,149.37,149.33,703.03219996]
[1642038408505,2.678,149.36,149.33,703.03219996]
[1642038408705,9.5,149.35,149.33,703.03219996]
[1642038409107,9.75,149.35,149.33,703.03219996]
[1642038409510,12.78059896,149.35,149.33,700.0]
[1642038409812,22.82759896,149.35,149.33,700.0]
[1642038411911,19.797,149.35,149.33,703.03219996]
[1642038413913,19.547,149.35,149.33,727.10822096]
[1642038414114,9.5,149.35,149.33,727.10822096]
[1642038414316,25.22460522,149.38,149.33,703.03219996]
[1642038414514,25.22460522,149.38,149.34,0.26]
[1642038415718,25.47460522,149.38,149.34,0.26]
[1642038416116,25.47460522,149.38,149.34,2.938]
[1642038420525,25.22460522,149.38,149.34,2.938]
[1642038422723,25.47460522,149.38,149.34,2.938]
[1642038425224,25.22460522,149.38,149.34,2.938]
[1642038426425,25.22460522,149.38,149.34,0.26]
[1642038426726,25.47460522,149.38,149.34,0.26]
[1642038426925,25.47460522,149.38,149.34,6.26]
[1642038427127,25.22460522,149.38,149.34,6.26]
[1642038427356,25.22460522,149.38,149.34,18.9794]
[1642038427556,25.22460522,149.38,149.35,66.34]
[1642038427859,15.72460522,149.38,149.36,72.05019996]
[1642038428155,15.72460522,149.38,149.36,69.63219996]
[1642038428355,5.22e-06,149.38,149.37,56.677]
[1642038428555,5.22e-06,149.38,149.37,56.937]
[1642038429456,5.22e-06,149.38,149.37,123.277]
[1642038430956,5.22e-06,149.38,149.37,133.3164]
[1642038431461,5.22e-06,149.38,149.37,133.5664]
[1642038431659,5.22e-06,149.38,149.37,139.3034]
[1642038432658,5.22e-06,149.38,149.37,133.3164]
[1642038436864,5.22e-06,149.38,149.37,66.9764]
[1642038437566,5.22e-06,149.38,149.37,64.0394]
[1642038437767,5.22e-06,149.38,149.37,54.0]
[1642038439167,5.22e-06,149.38,149.37,54.26]
[1642038440269,5.22e-06,149.38,149.37,120.6]
[1642038440469,5.22e-06,149.38,149.37,130.6394]
[1642038441870,5.22e-06,149.38,149.37,130.8894]
[1642038442069,5.22e-06,149.38,149.37,133.5664]
[1642038442270,5.22e-06,149.38,149.37,133.3164]
[1642038442469,5.22e-06,149.38,149.37,133.5664]
[1642038442669,5.22e-06,149.38,149.37,139.5664]
[1642038443071,5.22e-06,149.38,149.37,136.6394]
[1642038444270,5.22e-06,149.38,149.37,139.3164]
[1642038444470,5.22e-06,149.38,149.37,139.5664]
[1642038446674,5.22e-06,149.38,149.37,139.3164]
[1642038448379,5.22e-06,149.38,149.37,139.5664]
[1642038450483,5.22e-06,149.38,149.37,149.6312]
[1642038458391,5.22e-06,149.38,149.37,151.52089565]
[1642038459192,5.22e-06,149.38,149.37,149.6312]
[1642038460296,5.22e-06,149.38,149.37,149.1212]
[1642038460694,5.22e-06,149.38,149.37,143.1212]
[1642038461724,5.22e-06,149.38,149.37,143.3812]
[1642038463023,5.22e-06,149.38,149.37,140.9542]
[1642038463826,5.22e-06,149.38,149.37,146.9542]
[1642038464029,5.22e-06,149.38,149.37,149.6312]
[1642038464526,5.22e-06,149.38,149.37,147.6312]
[1642038465328,5.22e-06,149.38,149.37,147.3812]
[1642038466734,5.22e-06,149.38,149.37,147.6312]
[1642038467231,5.22e-06,149.38,149.37,144.9542]
[1642038469733,5.22e-06,149.38,149.37,147.6312]
[1642038472435,5.22e-06,149.38,149.37,144.9542]
[1642038473038,5.22e-06,149.38,149.37,144.7042]
[1642038473236,5.22e-06,149.38,149.37,144.2042]
[1642038473535,5.22e-06,149.38,149.37,144.4542]
[1642038473735,5.22e-06,149.38,149.37,144.2042]
[1642038475544,5.22e-06,149.38,149.37,144.4542]
[1642038476745,5.22e-06,149.38,149.37,144.2042]
[1642038477944,5.22e-06,149.38,149.37,146.09389565]
[1642038478144,5.22e-06,149.38,149.37,146.34389565]
[1642038478544,5.22e-06,149.38,149.37,149.02089565]
[1642038478944,5.22e-06,149.38,149.37,147.1312]
[1642038479872,5.22e-06,149.38,149.37,148.76089565]
[1642038480869,5.22e-06,149.38,149.37,146.8712]
[1642038481370,5.22e-06,149.38,149.37,146.6212]
[1642038481573,5.22e-06,149.38,149.37,146.8812]
[1642038482770,5.22e-06,149.38,149.37,144.2042]
[1642038482971,5.22e-06,149.38,149.37,144.4542]
[1642038483975,5.22e-06,149.38,149.37,144.2042]
[1642038484173,5.22e-06,149.38,149.37,144.4542]
[1642038487576,5.22e-06,149.38,149.37,147.1312]
[1642038488377,5.22e-06,149.38,149.37,146.8812]
[1642038488577,5.22e-06,149.38,149.37,144.4542]
[1642038490081,5.22e-06,149.38,149.37,144.2042]
[1642038491586,5.22e-06,149.38,149.37,144.4542]
[1642038492486,5.22e-06,149.38,149.37,138.4542]
[1642038494791,5.22e-06,149.38,149.37,144.2042]
[1642038495088,4.08650498,149.46,149.37,144.4542]
[1642038495292,4.58649976,149.48,149.43,66.34]
[1642038495587,1.90949976,149.49,149.44,0.26]
[1642038495787,1.90949976,149.5,149.44,0.26]
[1642038495986,2.676,149.49,149.44,0.26]
[1642038496187,4.58549976,149.5,149.44,0.26]
[1642038496388,4.58549976,149.5,149.44,10.2946]
[1642038496589,4.58549976,149.5,149.45,66.34]
[1642038496788,2.676,149.5,149.45,66.34]
[1642038496987,2.926,149.5,149.46,0.26]
[1642038499593,2.676,149.5,149.46,0.26]
[1642038500196,12.176,149.5,149.41,66.34]
[1642038500401,0.26,149.49,149.41,66.34]
[1642038500598,2.676,149.48,149.41,66.34]
[1642038501100,2.926,149.48,149.41,66.34]
[1642038501797,12.9634,149.48,149.42,0.26]
[1642038501996,12.9634,149.48,149.41,66.34]
[1642038503400,12.9634,149.48,149.42,0.26]
[1642038503598,12.9634,149.48,149.41,0.26]
[1642038504697,6.0,149.47,149.41,0.26]
[1642038504898,16.0381,149.47,149.41,0.26]
[1642038505098,16.2881,149.47,149.4,0.26]
[1642038506124,10.0381,149.47,149.4,10.2973]
[1642038506326,24.1949,149.49,149.41,66.34]
[1642038506327,33.972,149.49,149.41,66.34]
[1642038506526,33.972,149.49,149.42,24.0736]
[1642038506728,33.972,149.49,149.42,49.68788097]
[1642038507126,35.88127139,149.49,149.42,49.68788097]
[1642038507325,35.88127139,149.49,149.43,66.34]
[1642038507525,35.88127139,149.49,149.44,0.26]
[1642038507726,11.94637139,149.49,149.44,0.26]
[1642038508928,11.94637139,149.49,149.44,2.936]
[1642038509530,12.19637139,149.49,149.44,2.936]
[1642038509927,12.19637139,149.49,149.45,6.0]
[1642038510326,2.15927139,149.49,149.46,0.26]
[1642038510730,3.03059896,149.48,149.46,0.26]
[1642038511136,3.28059896,149.48,149.46,0.26]
[1642038511528,3.28059896,149.48,149.45,0.26]
[1642038511929,3.28059896,149.48,149.46,3.03219996]
[1642038512427,0.25,149.48,149.47,30.26]
[1642038512829,0.25,149.48,149.47,30.0]
[1642038513529,2.676,149.53,149.47,30.0]
[1642038513734,9.5,149.54,149.47,32.674]
[1642038514134,9.5,149.54,149.48,0.26]
[1642038514336,2.674,149.57,149.49,2.674]
[1642038514536,2.674,149.59,149.49,2.674]
[1642038514735,2.674,149.59,149.5,0.26]
[1642038514936,6.0,149.58,149.5,0.26]
[1642038515535,16.0306,149.58,149.5,66.6]
[1642038515740,16.2806,149.58,149.5,66.6]
[1642038516538,10.2806,149.58,149.5,66.6]
[1642038517238,10.0306,149.58,149.5,66.6]
[1642038518243,10.0306,149.58,149.51,2.674]
[1642038518442,10.0306,149.58,149.52,0.26]
[1642038518741,10.2806,149.58,149.52,0.26]
[1642038519944,10.2806,149.58,149.51,0.26]
[1642038521844,10.0306,149.58,149.51,0.26]
[1642038523146,10.2806,149.58,149.51,0.26]
[1642038524449,10.0306,149.58,149.51,0.26]
[1642038525650,10.2806,149.58,149.51,0.26]
[1642038528155,10.0306,149.58,149.51,0.26]
[1642038528357,2.674,149.59,149.51,0.26]
[1642038528554,12.174,149.6,149.52,2.674]
[1642038528759,9.5,149.6,149.52,2.924]
[1642038528957,12.174,149.63,149.53,0.26]
[1642038529156,9.5,149.63,149.54,2.674]
[1642038529358,9.5,149.63,149.54,69.014]
[1642038529557,9.5,149.63,149.55,0.26]
[1642038529756,9.5,149.63,149.57,66.34]
[1642038529969,9.5,149.63,149.58,2.933]
[1642038530360,1.90239911,149.61,149.58,2.933]
[1642038530562,1.90239911,149.61,149.59,3.03219996]
[1642038531663,2.15239911,149.61,149.59,3.03219996]
[1642038532063,3.03059896,149.6,149.58,2.933]
[1642038532262,3.28059896,149.6,149.58,2.933]
[1642038532484,0.25,149.6,149.59,28.03219996]
[1642038532890,0.25,149.6,149.59,28.29219996]
[1642038537197,14.60199911,149.64,149.59,28.29219996]
[1642038537397,1.90239911,149.64,149.6,0.26]
[1642038538001,1.90239911,149.64,149.6,66.6]
[1642038538299,1.90239911,149.64,149.6,66.34]
[1642038538501,1.90239911,149.64,149.61,0.26]
[1642038538700,0.25,149.64,149.61,0.26]
[1642038538901,0.25,149.64,149.62,3.03219996]
[1642038539102,3.03059896,149.63,149.62,3.03219996]
[1642038539500,0.25,149.63,149.62,3.03219996]
[1642038542812,1.90239911,149.65,149.62,3.03219996]
[1642038543412,1.90239911,149.65,149.63,0.26]
[1642038543637,1.90239911,149.65,149.64,43.03219996]
[1642038544036,1.90239911,149.65,149.64,43.29219996]
[1642038544837,1.90239911,149.69,149.64,43.29219996]
[1642038545037,1.90239911,149.69,149.65,0.26]
[1642038545240,2.15239911,149.69,149.65,0.26]
[1642038546543,0.25,149.69,149.65,0.26]
[1642038546745,11.65239911,149.72,149.65,0.26]
[1642038546941,0.26,149.71,149.65,0.26]
[1642038550344,9.5,149.72,149.65,2.932]
[1642038550949,9.5,149.72,149.65,26.03642701]
[1642038551144,9.5,149.72,149.65,26.28642701]
[1642038551346,9.5,149.72,149.65,36.30632701]
[1642038551545,9.5,149.72,149.66,66.34]
[1642038551748,9.5,149.72,149.67,2.672]
[1642038551947,9.5,149.72,149.67,2.932]
[1642038552146,9.75,149.72,149.67,2.932]
[1642038552546,0.25,149.72,149.68,28.85884391]
[1642038552746,24.34339911,149.76,149.68,28.85884391]
[1642038552945,0.26,149.75,149.69,2.93]
[1642038553148,0.26,149.75,149.69,0.26]
[1642038553347,21.42139911,149.76,149.69,0.26]
[1642038553645,11.40239911,149.76,149.69,0.26]
[1642038554246,9.5,149.76,149.69,0.26]
[1642038554651,9.75,149.76,149.69,0.26]